[Event "Titled Tuesday Blitz October 11 Late 2022"]
[White "Van Foreest, Jorden"]
[Black "Bilych, Olexiy"]
[WhiteFideId "1039784"]
[BlackFideId "14156504"]
[WhiteElo "2649"]
[BlackElo "2320"]
[Result "1-0"]
[Round "03"]
[TimeControl "180+1"]
[Date "2022.10.11"]
[WhiteClock "0:00:49"]
[BlackClock "0:00:03"]

1. e4 {[%clk 0:03:00]}  e5 {[%clk 0:02:47]} 2. Nf3 {[%clk 0:03:01]}  Nc6 {[%clk 0:02:47]} 3. Bb5 {[%clk 0:03:01]}  a6 {[%clk 0:02:45]} 4. Ba4 {[%clk 0:03:01]}  Nge7 {[%clk 0:02:45]} 5. c3 {[%clk 0:02:59]}  Ng6 {[%clk 0:02:45]} 6. d4 {[%clk 0:02:52]}  exd4 {[%clk 0:02:43]} 7. cxd4 {[%clk 0:02:52]}  Bb4+ {[%clk 0:02:43]} 8. Nc3 {[%clk 0:02:52]}  O-O {[%clk 0:02:36]} 9. O-O {[%clk 0:02:51]}  Bxc3 {[%clk 0:02:35]} 10. bxc3 {[%clk 0:02:51]}  d5 {[%clk 0:02:36]} 11. exd5 {[%clk 0:02:47]}  Qxd5 {[%clk 0:02:37]} 12. h3 {[%clk 0:02:45]}  Na5 {[%clk 0:02:25]} 13. Re1 {[%clk 0:02:34]}  b5 {[%clk 0:02:20]} 14. Bc2 {[%clk 0:02:33]}  Bf5 {[%clk 0:02:21]} 15. a4 {[%clk 0:02:13]}  Bxc2 {[%clk 0:02:12]} 16. Qxc2 {[%clk 0:02:14]}  Nc4 {[%clk 0:02:09]} 17. Qe4 {[%clk 0:02:01]}  Qxe4 {[%clk 0:02:04]} 18. Rxe4 {[%clk 0:02:02]}  Rfe8 {[%clk 0:02:03]} 19. Rxe8+ {[%clk 0:02:01]}  Rxe8 {[%clk 0:02:04]} 20. axb5 {[%clk 0:01:56]}  axb5 {[%clk 0:02:04]} 21. Ra7 {[%clk 0:01:56]}  c6 {[%clk 0:02:00]} 22. Ba3 {[%clk 0:01:46]}  Nf4 {[%clk 0:01:52]} 23. Bb4 {[%clk 0:01:45]}  Nd5 {[%clk 0:01:51]} 24. Ra6 {[%clk 0:01:44]}  Rc8 {[%clk 0:01:43]} 25. Kf1 {[%clk 0:01:43]}  f6 {[%clk 0:01:42]} 26. g3 {[%clk 0:01:39]}  Kf7 {[%clk 0:01:40]} 27. Ne1 {[%clk 0:01:37]}  Nd2+ {[%clk 0:01:36]} 28. Kg2 {[%clk 0:01:33]}  Ne4 {[%clk 0:01:37]} 29. Ra3 {[%clk 0:01:30]}  Nd2 {[%clk 0:01:27]} 30. Nd3 {[%clk 0:01:29]}  Nc4 {[%clk 0:01:26]} 31. Ra6 {[%clk 0:01:28]}  Ncb6 {[%clk 0:01:19]} 32. Ra7+ {[%clk 0:01:24]}  Rc7 {[%clk 0:01:12]} 33. Ra3 {[%clk 0:01:17]}  Nc8 {[%clk 0:01:06]} 34. Bc5 {[%clk 0:01:16]}  Ncb6 {[%clk 0:01:03]} 35. Bb4 {[%clk 0:01:13]}  g5 {[%clk 0:01:00]} 36. Kf3 {[%clk 0:01:13]}  h5 {[%clk 0:00:57]} 37. Nc5 {[%clk 0:01:13]}  Nc4 {[%clk 0:00:54]} 38. Ra6 {[%clk 0:01:11]}  Nd2+ {[%clk 0:00:52]} 39. Ke2 {[%clk 0:01:10]}  Nc4 {[%clk 0:00:45]} 40. Ne4 {[%clk 0:01:10]}  Nxb4 {[%clk 0:00:30]} 41. cxb4 {[%clk 0:01:11]}  Re7 {[%clk 0:00:30]} 42. Kf3 {[%clk 0:01:10]}  Re6 {[%clk 0:00:21]} 43. g4 {[%clk 0:01:10]}  hxg4+ {[%clk 0:00:17]} 44. hxg4 {[%clk 0:01:11]}  Kg6 {[%clk 0:00:17]} 45. Ng3 {[%clk 0:01:05]}  Nd2+ {[%clk 0:00:17]} 46. Kg2 {[%clk 0:01:05]}  Ne4 {[%clk 0:00:06]} 47. Nf5 {[%clk 0:01:05]}  Kf7 {[%clk 0:00:05]} 48. Ra7+ {[%clk 0:01:05]}  Kf8 {[%clk 0:00:05]} 49. Ra8+ {[%clk 0:01:01]}  Kf7 {[%clk 0:00:05]} 50. Rc8 {[%clk 0:01:01]}  Nc3 {[%clk 0:00:05]} 51. Ne3 {[%clk 0:00:58]}  Re4 {[%clk 0:00:04]} 52. Rc7+ {[%clk 0:00:56]}  Kf8 {[%clk 0:00:02]} 53. Rxc6 {[%clk 0:00:56]}  Ne2 {[%clk 0:00:02]} 54. Rxf6+ {[%clk 0:00:56]}  Ke7 {[%clk 0:00:02]} 55. Rf5 {[%clk 0:00:54]}  Nxd4 {[%clk 0:00:02]} 56. Rxg5 {[%clk 0:00:54]}  Ne2 {[%clk 0:00:02]} 57. Rxb5 {[%clk 0:00:53]}  Rd4 {[%clk 0:00:02]} 58. Re5+ {[%clk 0:00:52]}  Kf6 {[%clk 0:00:02]} 59. Rf5+ {[%clk 0:00:51]}  Kg6 {[%clk 0:00:03]} 60. b5 {[%clk 0:00:48]}  Nf4+ {[%clk 0:00:03]} 61. Kf3 {[%clk 0:00:47]}  Nd3 {[%clk 0:00:04]} 62. Rd5 {[%clk 0:00:46]}  Ne1+ {[%clk 0:00:04]} 63. Ke2 {[%clk 0:00:47]}  Rxd5 {[%clk 0:00:03]} 64. Nxd5 {[%clk 0:00:47]}  Nc2 {[%clk 0:00:04]} 65. b6 {[%clk 0:00:47]}  Nd4+ {[%clk 0:00:04]} 66. Ke3 {[%clk 0:00:47]}  Nc6 {[%clk 0:00:05]} 67. f4 {[%clk 0:00:48]}  Kf7 {[%clk 0:00:05]} 68. Ke4 {[%clk 0:00:48]}  Ke6 {[%clk 0:00:05]} 69. f5+ {[%clk 0:00:49]}  Kd6 {[%clk 0:00:05]} 70. g5 {[%clk 0:00:50]}  Nd8 {[%clk 0:00:04]} 71. g6 {[%clk 0:00:49]}  Nb7 {[%clk 0:00:03]} 72. g7 {[%clk 0:00:49]}  Nc5+ {[%clk 0:00:03]} 73. Kf4 {[%clk 0:00:49]}  Nd7 {[%clk 0:00:03]} 74. g8=Q {[%clk 0:00:49]}  Nxb6 {[%clk 0:00:03]} 75. Qe6+ {[%clk 0:00:49]}  Kc5 {[%clk 0:00:03]} 76. Nxb6 {[%clk 0:00:49]} 1-0


[Site "https://www.chess.com"]

[Event "Titled Tuesday Blitz October 11 Late 2022"]
[White "Vazquez, Guillermo"]
[Black "Azaladze, Shota"]
[WhiteFideId "3702308"]
[BlackFideId "13603027"]
[WhiteElo "2543"]
[BlackElo "2439"]
[Result "1-0"]
[Round "03"]
[TimeControl "180+1"]
[Date "2022.10.11"]
[WhiteClock "0:00:02"]
[BlackClock "0:00:07"]

1. b3 {[%clk 0:03:00]}  c5 {[%clk 0:02:58]} 2. Bb2 {[%clk 0:02:59]}  Nc6 {[%clk 0:02:58]} 3. c4 {[%clk 0:02:58]}  d6 {[%clk 0:02:56]} 4. Nc3 {[%clk 0:02:55]}  Nf6 {[%clk 0:02:54]} 5. g3 {[%clk 0:02:51]}  e6 {[%clk 0:02:52]} 6. Bg2 {[%clk 0:02:50]}  Be7 {[%clk 0:02:52]} 7. Nf3 {[%clk 0:02:51]}  O-O {[%clk 0:02:51]} 8. d4 {[%clk 0:02:48]}  Bd7 {[%clk 0:02:37]} 9. d5 {[%clk 0:02:39]}  exd5 {[%clk 0:02:35]} 10. cxd5 {[%clk 0:02:40]}  Nb4 {[%clk 0:02:23]} 11. O-O {[%clk 0:02:27]}  Re8 {[%clk 0:02:22]} 12. e4 {[%clk 0:02:19]}  Bg4 {[%clk 0:02:21]} 13. h3 {[%clk 0:02:16]}  Bxf3 {[%clk 0:02:20]} 14. Bxf3 {[%clk 0:02:17]}  Nd7 {[%clk 0:02:21]} 15. a3 {[%clk 0:02:07]}  Na6 {[%clk 0:02:20]} 16. Bg2 {[%clk 0:02:02]}  Bf6 {[%clk 0:02:19]} 17. f4 {[%clk 0:02:01]}  Bd4+ {[%clk 0:02:18]} 18. Kh1 {[%clk 0:01:58]}  Nc7 {[%clk 0:02:19]} 19. Qc2 {[%clk 0:01:47]}  Qf6 {[%clk 0:02:10]} 20. Rad1 {[%clk 0:01:41]}  Re7 {[%clk 0:02:07]} 21. e5 {[%clk 0:01:39]}  Qh6 {[%clk 0:01:51]} 22. Ne4 {[%clk 0:01:35]}  Ne8 {[%clk 0:01:47]} 23. Bc1 {[%clk 0:01:26]}  f5 {[%clk 0:01:42]} 24. Ng5 {[%clk 0:01:03]}  Qg6 {[%clk 0:01:02]} 25. e6 {[%clk 0:00:57]}  Ndf6 {[%clk 0:01:02]} 26. g4 {[%clk 0:00:31]}  fxg4 {[%clk 0:00:42]} 27. Qe2 {[%clk 0:00:30]}  Qh5 {[%clk 0:00:32]} 28. b4 {[%clk 0:00:23]}  b6 {[%clk 0:00:28]} 29. f5 {[%clk 0:00:20]}  Nc7 {[%clk 0:00:22]} 30. Bf4 {[%clk 0:00:16]}  Rd8 {[%clk 0:00:21]} 31. bxc5 {[%clk 0:00:08]}  bxc5 {[%clk 0:00:20]} 32. Nf7 {[%clk 0:00:09]}  Rxf7 {[%clk 0:00:15]} 33. exf7+ {[%clk 0:00:10]}  Kxf7 {[%clk 0:00:15]} 34. Rb1 {[%clk 0:00:04]}  Kg8 {[%clk 0:00:12]} 35. Rb7 {[%clk 0:00:04]}  Re8 {[%clk 0:00:12]} 36. Qd1 {[%clk 0:00:02]}  Ncxd5 {[%clk 0:00:08]} 37. Qb3 {[%clk 0:00:02]}  gxh3 {[%clk 0:00:07]} 38. Bxd5+ {[%clk 0:00:02]}  Nxd5 {[%clk 0:00:07]} 39. Qxd5+ {[%clk 0:00:03]}  Kh8 {[%clk 0:00:08]} 40. Qf3 {[%clk 0:00:03]}  Qxf5 {[%clk 0:00:07]} 41. Bg3 {[%clk 0:00:03]}  Qg6 {[%clk 0:00:07]} 42. Qf8+ {[%clk 0:00:01]}  Rxf8 {[%clk 0:00:07]} 43. Rxf8# {[%clk 0:00:02]} 1-0


[Site "https://www.chess.com"]

[Event "Titled Tuesday Blitz October 11 Late 2022"]
[White "Vega Gutierrez, Sabrina"]
[Black "Ismagilov, Damir"]
[WhiteFideId "2219026"]
[BlackFideId "34199982"]
[WhiteElo "2261"]
[BlackElo "2106"]
[Result "1-0"]
[Round "03"]
[TimeControl "180+1"]
[Date "2022.10.12"]
[WhiteClock "0:00:09"]
[BlackClock "0:00:01"]

1. e4 {[%clk 0:03:00]}  e5 {[%clk 0:02:58]} 2. Nf3 {[%clk 0:03:01]}  Nc6 {[%clk 0:02:58]} 3. Nc3 {[%clk 0:03:01]}  Nf6 {[%clk 0:02:58]} 4. g3 {[%clk 0:03:01]}  Bb4 {[%clk 0:02:53]} 5. Bg2 {[%clk 0:03:02]}  O-O {[%clk 0:02:51]} 6. O-O {[%clk 0:03:02]}  d6 {[%clk 0:02:44]} 7. d3 {[%clk 0:03:01]}  h6 {[%clk 0:02:28]} 8. h3 {[%clk 0:03:01]}  Be6 {[%clk 0:02:26]} 9. Kh2 {[%clk 0:03:00]}  Bxc3 {[%clk 0:02:22]} 10. bxc3 {[%clk 0:03:00]}  d5 {[%clk 0:02:23]} 11. exd5 {[%clk 0:02:26]}  Bxd5 {[%clk 0:02:24]} 12. c4 {[%clk 0:02:21]}  Be6 {[%clk 0:02:23]} 13. Re1 {[%clk 0:02:19]}  e4 {[%clk 0:02:20]} 14. dxe4 {[%clk 0:01:32]}  Qxd1 {[%clk 0:02:18]} 15. Rxd1 {[%clk 0:01:33]}  Nxe4 {[%clk 0:02:14]} 16. Be3 {[%clk 0:01:33]}  Bxc4 {[%clk 0:01:40]} 17. Nd4 {[%clk 0:01:32]}  Nxd4 {[%clk 0:01:11]} 18. Rxd4 {[%clk 0:01:29]}  Nd6 {[%clk 0:01:10]} 19. Bf4 {[%clk 0:01:21]}  Ba6 {[%clk 0:01:03]} 20. c4 {[%clk 0:01:03]}  Nxc4 {[%clk 0:00:56]} 21. Rc1 {[%clk 0:01:02]}  c6 {[%clk 0:00:49]} 22. Rdxc4 {[%clk 0:00:59]}  Bxc4 {[%clk 0:00:48]} 23. Rxc4 {[%clk 0:01:00]}  Rfe8 {[%clk 0:00:38]} 24. Be3 {[%clk 0:01:00]}  Re5 {[%clk 0:00:31]} 25. Rb4 {[%clk 0:00:40]}  Re7 {[%clk 0:00:26]} 26. Ra4 {[%clk 0:00:24]}  a6 {[%clk 0:00:23]} 27. Bb6 {[%clk 0:00:22]}  Rd7 {[%clk 0:00:22]} 28. Re4 {[%clk 0:00:20]}  f6 {[%clk 0:00:21]} 29. a4 {[%clk 0:00:21]}  Kf7 {[%clk 0:00:20]} 30. Bf1 {[%clk 0:00:19]}  f5 {[%clk 0:00:18]} 31. Bc4+ {[%clk 0:00:19]}  Kg6 {[%clk 0:00:15]} 32. Re6+ {[%clk 0:00:19]}  Kh7 {[%clk 0:00:16]} 33. h4 {[%clk 0:00:16]}  f4 {[%clk 0:00:11]} 34. gxf4 {[%clk 0:00:15]}  Rf8 {[%clk 0:00:11]} 35. Kg3 {[%clk 0:00:16]}  Rd1 {[%clk 0:00:07]} 36. h5 {[%clk 0:00:13]}  Rf5 {[%clk 0:00:05]} 37. Bb3 {[%clk 0:00:11]}  Rd3+ {[%clk 0:00:04]} 38. Re3 {[%clk 0:00:10]}  Rxe3+ {[%clk 0:00:05]} 39. fxe3 {[%clk 0:00:10]}  Rxh5 {[%clk 0:00:06]} 40. Be6 {[%clk 0:00:10]}  Rh1 {[%clk 0:00:03]} 41. Bc8 {[%clk 0:00:10]}  Re1 {[%clk 0:00:03]} 42. Bxb7 {[%clk 0:00:08]}  Rb1 {[%clk 0:00:03]} 43. a5 {[%clk 0:00:09]}  g6 {[%clk 0:00:02]} 44. Bxa6 {[%clk 0:00:09]}  Rb3 {[%clk 0:00:01]} 45. Bc4 {[%clk 0:00:09]}  Ra3 {[%clk 0:00:02]} 46. a6 {[%clk 0:00:09]}  Ra4 {[%clk 0:00:02]} 47. a7 {[%clk 0:00:09]}  h5 {[%clk 0:00:01]} 48. Bb3 {[%clk 0:00:09]} 1-0


[Site "https://www.chess.com"]

[Event "Titled Tuesday Blitz October 11 Late 2022"]
[White "Yanchenko, Roman"]
[Black "Hirneise, Jens"]
[WhiteFideId "4137329"]
[BlackFideId "24614734"]
[WhiteElo "2514"]
[BlackElo "2344"]
[Result "1-0"]
[Round "03"]
[TimeControl "180+1"]
[Date "2022.10.12"]
[WhiteClock "0:00:49"]
[BlackClock "0:00:22"]

1. d4 {[%clk 0:03:00]}  d5 {[%clk 0:02:57]} 2. c4 {[%clk 0:03:01]}  e6 {[%clk 0:02:57]} 3. Nc3 {[%clk 0:03:01]}  h6 {[%clk 0:02:55]} 4. Bf4 {[%clk 0:03:01]}  a6 {[%clk 0:02:53]} 5. e3 {[%clk 0:03:01]}  Nf6 {[%clk 0:02:54]} 6. Nf3 {[%clk 0:03:01]}  Bb4 {[%clk 0:02:43]} 7. Qa4+ {[%clk 0:02:58]}  Nc6 {[%clk 0:02:41]} 8. Ne5 {[%clk 0:02:58]}  Bxc3+ {[%clk 0:02:41]} 9. bxc3 {[%clk 0:02:58]}  Bd7 {[%clk 0:02:41]} 10. Nxd7 {[%clk 0:02:57]}  Qxd7 {[%clk 0:02:40]} 11. Rb1 {[%clk 0:02:56]}  Qc8 {[%clk 0:02:31]} 12. Be5 {[%clk 0:02:51]}  Nd7 {[%clk 0:02:18]} 13. cxd5 {[%clk 0:02:47]}  Ndxe5 {[%clk 0:02:11]} 14. dxc6 {[%clk 0:02:31]}  Nxc6 {[%clk 0:02:10]} 15. g3 {[%clk 0:02:29]}  O-O {[%clk 0:02:04]} 16. Bg2 {[%clk 0:02:29]}  Nd8 {[%clk 0:01:53]} 17. O-O {[%clk 0:02:27]}  c6 {[%clk 0:01:48]} 18. c4 {[%clk 0:02:26]}  Qd7 {[%clk 0:01:45]} 19. Rb6 {[%clk 0:02:23]}  Rc8 {[%clk 0:01:38]} 20. Rfb1 {[%clk 0:02:22]}  Rc7 {[%clk 0:01:36]} 21. h4 {[%clk 0:02:14]}  h5 {[%clk 0:01:35]} 22. Qa5 {[%clk 0:02:13]}  g6 {[%clk 0:01:34]} 23. Qg5 {[%clk 0:02:11]}  Qe7 {[%clk 0:01:33]} 24. Qf4 {[%clk 0:02:11]}  Kg7 {[%clk 0:01:32]} 25. a4 {[%clk 0:02:07]}  Rd7 {[%clk 0:01:32]} 26. c5 {[%clk 0:02:02]}  Qf6 {[%clk 0:01:30]} 27. Qg5 {[%clk 0:01:42]}  Qxg5 {[%clk 0:01:27]} 28. hxg5 {[%clk 0:01:43]}  Re8 {[%clk 0:01:27]} 29. f4 {[%clk 0:01:43]}  Ree7 {[%clk 0:01:25]} 30. Kf2 {[%clk 0:01:42]}  Rc7 {[%clk 0:01:23]} 31. Bf3 {[%clk 0:01:41]}  Red7 {[%clk 0:01:22]} 32. Ke2 {[%clk 0:01:37]}  Re7 {[%clk 0:01:19]} 33. Kd3 {[%clk 0:01:37]}  Rcd7 {[%clk 0:01:19]} 34. Kc4 {[%clk 0:01:37]}  Re8 {[%clk 0:01:16]} 35. R6b2 {[%clk 0:01:37]}  Ree7 {[%clk 0:01:16]} 36. Kb4 {[%clk 0:01:36]}  Kf8 {[%clk 0:01:08]} 37. Ka5 {[%clk 0:01:37]}  Rc7 {[%clk 0:01:08]} 38. Rh2 {[%clk 0:01:28]}  Ke8 {[%clk 0:01:05]} 39. Kb6 {[%clk 0:01:21]}  Kd7 {[%clk 0:01:03]} 40. g4 {[%clk 0:01:20]}  hxg4 {[%clk 0:01:02]} 41. Bxg4 {[%clk 0:01:21]}  Re8 {[%clk 0:00:56]} 42. Rbh1 {[%clk 0:01:17]}  Rc8 {[%clk 0:00:55]} 43. Rh8 {[%clk 0:01:14]}  Rxh8 {[%clk 0:00:53]} 44. Rxh8 {[%clk 0:01:15]}  Ke7 {[%clk 0:00:53]} 45. Be2 {[%clk 0:01:13]}  Kd7 {[%clk 0:00:53]} 46. Bd3 {[%clk 0:01:11]}  Rc7 {[%clk 0:00:52]} 47. Rh7 {[%clk 0:01:10]}  Kc8 {[%clk 0:00:41]} 48. Rh8 {[%clk 0:01:10]}  Rd7 {[%clk 0:00:40]} 49. Rg8 {[%clk 0:01:09]}  Re7 {[%clk 0:00:37]} 50. Bc2 {[%clk 0:00:56]}  Kd7 {[%clk 0:00:36]} 51. Rh8 {[%clk 0:00:50]}  Re8 {[%clk 0:00:30]} 52. Rh7 {[%clk 0:00:50]}  Ke7 {[%clk 0:00:22]} 53. Bxg6 {[%clk 0:00:49]} 1-0


[Site "https://www.chess.com"]

[Event "Titled Tuesday Blitz October 11 Late 2022"]
[White "Yano, William Jorge Froes"]
[Black "Besedes, Danilo"]
[WhiteFideId "2112949"]
[BlackFideId "946796"]
[WhiteElo "2122"]
[BlackElo "2352"]
[Result "0-1"]
[Round "03"]
[TimeControl "180+1"]
[Date "2022.10.12"]
[WhiteClock "0:00:15"]
[BlackClock "0:00:08"]

1. e4 {[%clk 0:02:57]}  e6 {[%clk 0:02:59]} 2. d4 {[%clk 0:02:56]}  d5 {[%clk 0:03:00]} 3. Nc3 {[%clk 0:02:57]}  dxe4 {[%clk 0:02:59]} 4. Nxe4 {[%clk 0:02:56]}  Bd7 {[%clk 0:02:56]} 5. Nf3 {[%clk 0:02:56]}  Bc6 {[%clk 0:02:57]} 6. Bd3 {[%clk 0:02:56]}  Nd7 {[%clk 0:02:57]} 7. Qe2 {[%clk 0:02:57]}  Ngf6 {[%clk 0:02:57]} 8. Neg5 {[%clk 0:02:57]}  Bd6 {[%clk 0:02:54]} 9. Bd2 {[%clk 0:02:52]}  h6 {[%clk 0:02:49]} 10. Nxe6 {[%clk 0:02:46]}  fxe6 {[%clk 0:02:44]} 11. Bg6+ {[%clk 0:02:45]}  Kf8 {[%clk 0:02:42]} 12. O-O-O {[%clk 0:02:44]}  Qe7 {[%clk 0:02:07]} 13. Nh4 {[%clk 0:02:42]}  Kg8 {[%clk 0:01:48]} 14. Rhe1 {[%clk 0:02:42]}  Nf8 {[%clk 0:01:47]} 15. f4 {[%clk 0:02:19]}  Be8 {[%clk 0:01:33]} 16. Bd3 {[%clk 0:02:03]}  Nd5 {[%clk 0:01:29]} 17. g3 {[%clk 0:02:03]}  Nxf4 {[%clk 0:01:25]} 18. gxf4 {[%clk 0:01:53]}  Qxh4 {[%clk 0:01:25]} 19. Rg1 {[%clk 0:01:50]}  Bxf4 {[%clk 0:01:01]} 20. Kb1 {[%clk 0:01:27]}  Bxd2 {[%clk 0:00:57]} 21. Rxd2 {[%clk 0:01:27]}  Qf6 {[%clk 0:00:47]} 22. Qe3 {[%clk 0:01:15]}  g5 {[%clk 0:00:37]} 23. h4 {[%clk 0:01:13]}  Qg7 {[%clk 0:00:32]} 24. Rdg2 {[%clk 0:01:12]}  Bg6 {[%clk 0:00:30]} 25. hxg5 {[%clk 0:01:11]}  h5 {[%clk 0:00:29]} 26. Bc4 {[%clk 0:01:10]}  Re8 {[%clk 0:00:20]} 27. Rf2 {[%clk 0:01:10]}  Rh7 {[%clk 0:00:14]} 28. Rf6 {[%clk 0:01:09]}  Nd7 {[%clk 0:00:14]} 29. Rxe6 {[%clk 0:01:06]}  Rxe6 {[%clk 0:00:14]} 30. Bxe6+ {[%clk 0:00:59]}  Kh8 {[%clk 0:00:14]} 31. Qf4 {[%clk 0:00:51]}  Qe7 {[%clk 0:00:13]} 32. Bxd7 {[%clk 0:00:50]}  Rf7 {[%clk 0:00:13]} 33. Qxc7 {[%clk 0:00:30]}  Qxd7 {[%clk 0:00:13]} 34. Qb8+ {[%clk 0:00:30]}  Kh7 {[%clk 0:00:13]} 35. Qe5 {[%clk 0:00:22]}  Qg4 {[%clk 0:00:11]} 36. Rc1 {[%clk 0:00:19]}  Qf5 {[%clk 0:00:10]} 37. Qd6 {[%clk 0:00:19]}  Qxg5 {[%clk 0:00:09]} 38. Ka1 {[%clk 0:00:18]}  Qf5 {[%clk 0:00:09]} 39. c3 {[%clk 0:00:17]}  a6 {[%clk 0:00:08]} 40. a3 {[%clk 0:00:16]}  Rd7 {[%clk 0:00:08]} 41. Qb8 {[%clk 0:00:16]}  Bf7 {[%clk 0:00:08]} 42. Re1 {[%clk 0:00:15]}  Qd5 {[%clk 0:00:08]} 43. Kb1 {[%clk 0:00:15]}  Qa2+ {[%clk 0:00:07]} 44. Kc1 {[%clk 0:00:14]}  Qa1+ {[%clk 0:00:07]} 45. Kd2 {[%clk 0:00:15]}  Qxb2+ {[%clk 0:00:07]} 46. Kd3 {[%clk 0:00:15]}  Bg6+ {[%clk 0:00:07]} 47. Kc4 {[%clk 0:00:15]}  Qa2+ {[%clk 0:00:07]} 48. Kb4 {[%clk 0:00:15]}  Qb2+ {[%clk 0:00:08]} 49. Kc5 {[%clk 0:00:15]}  Qb5# {[%clk 0:00:08]} 0-1


[Site "https://www.chess.com"]

[Event "Titled Tuesday Blitz October 11 Late 2022"]
[White "Yi, Richard"]
[Black "Vujcic, Milena"]
[WhiteFideId "2079518"]
[BlackFideId "954748"]
[WhiteElo "2147"]
[BlackElo "1931"]
[Result "1-0"]
[Round "03"]
[TimeControl "180+1"]
[Date "2022.10.12"]
[WhiteClock "0:01:02"]
[BlackClock "0:00:01"]

1. Nf3 {[%clk 0:03:00]}  g6 {[%clk 0:02:54]} 2. e4 {[%clk 0:02:57]}  Bg7 {[%clk 0:02:52]} 3. d4 {[%clk 0:02:57]}  d6 {[%clk 0:02:52]} 4. Nc3 {[%clk 0:02:57]}  Nf6 {[%clk 0:02:52]} 5. Be2 {[%clk 0:02:56]}  c6 {[%clk 0:02:51]} 6. O-O {[%clk 0:02:54]}  b5 {[%clk 0:02:50]} 7. h3 {[%clk 0:02:52]}  b4 {[%clk 0:02:48]} 8. e5 {[%clk 0:02:43]}  Nfd7 {[%clk 0:02:39]} 9. Ne4 {[%clk 0:02:26]}  dxe5 {[%clk 0:02:36]} 10. d5 {[%clk 0:02:22]}  O-O {[%clk 0:02:30]} 11. Be3 {[%clk 0:02:04]}  Bb7 {[%clk 0:02:20]} 12. d6 {[%clk 0:01:57]}  exd6 {[%clk 0:01:50]} 13. Qxd6 {[%clk 0:01:51]}  f5 {[%clk 0:01:37]} 14. Neg5 {[%clk 0:01:45]}  Qf6 {[%clk 0:00:55]} 15. Bc4+ {[%clk 0:01:36]}  Kh8 {[%clk 0:00:53]} 16. Ne6 {[%clk 0:01:36]}  Rc8 {[%clk 0:00:16]} 17. Bg5 {[%clk 0:01:21]}  Qf7 {[%clk 0:00:10]} 18. Bb3 {[%clk 0:01:21]}  Qe8 {[%clk 0:00:08]} 19. Nc7 {[%clk 0:01:15]}  Rxc7 {[%clk 0:00:08]} 20. Qxc7 {[%clk 0:01:16]}  Qc8 {[%clk 0:00:08]} 21. Qd6 {[%clk 0:01:11]}  Nb6 {[%clk 0:00:08]} 22. Rad1 {[%clk 0:01:09]}  N8d7 {[%clk 0:00:08]} 23. Be6 {[%clk 0:01:03]}  Nf8 {[%clk 0:00:01]} 24. Bxc8 {[%clk 0:01:02]} 1-0


[Site "https://www.chess.com"]

[Event "Titled Tuesday Blitz October 11 Late 2022"]
[White "Zhigalko, Sergei"]
[Black "Suder, Jakub"]
[WhiteFideId "13502956"]
[BlackFideId "1195310"]
[WhiteElo "2662"]
[BlackElo "2174"]
[Result "1/2-1/2"]
[Round "03"]
[TimeControl "180+1"]
[Date "2022.10.12"]
[WhiteClock "0:00:02"]
[BlackClock "0:00:04"]

1. e4 {[%clk 0:03:00]}  c5 {[%clk 0:03:00]} 2. Nf3 {[%clk 0:03:00]}  e6 {[%clk 0:02:59]} 3. c3 {[%clk 0:03:00]}  Nf6 {[%clk 0:02:59]} 4. e5 {[%clk 0:03:01]}  Nd5 {[%clk 0:02:59]} 5. Bc4 {[%clk 0:03:00]}  d6 {[%clk 0:02:49]} 6. d4 {[%clk 0:02:59]}  cxd4 {[%clk 0:02:48]} 7. cxd4 {[%clk 0:03:00]}  Nb6 {[%clk 0:02:48]} 8. Bd3 {[%clk 0:03:00]}  Bd7 {[%clk 0:02:47]} 9. Bg5 {[%clk 0:02:47]}  Be7 {[%clk 0:02:42]} 10. Bxe7 {[%clk 0:02:42]}  Qxe7 {[%clk 0:02:42]} 11. Nc3 {[%clk 0:02:36]}  Bc6 {[%clk 0:02:41]} 12. O-O {[%clk 0:02:36]}  N8d7 {[%clk 0:02:39]} 13. Re1 {[%clk 0:02:34]}  O-O {[%clk 0:02:30]} 14. Qe2 {[%clk 0:02:26]}  dxe5 {[%clk 0:02:19]} 15. dxe5 {[%clk 0:02:23]}  Rac8 {[%clk 0:01:55]} 16. Ne4 {[%clk 0:02:16]}  Rc7 {[%clk 0:01:27]} 17. Rad1 {[%clk 0:02:00]}  Bxe4 {[%clk 0:01:21]} 18. Qxe4 {[%clk 0:01:58]}  g6 {[%clk 0:01:22]} 19. Qf4 {[%clk 0:01:51]}  Nd5 {[%clk 0:01:08]} 20. Qh6 {[%clk 0:01:50]}  Rd8 {[%clk 0:01:04]} 21. Be4 {[%clk 0:01:43]}  Nf8 {[%clk 0:00:59]} 22. Bxd5 {[%clk 0:01:40]}  Rxd5 {[%clk 0:00:57]} 23. Rxd5 {[%clk 0:01:39]}  exd5 {[%clk 0:00:58]} 24. Qd2 {[%clk 0:01:24]}  Rd7 {[%clk 0:00:48]} 25. h4 {[%clk 0:01:16]}  h5 {[%clk 0:00:45]} 26. g3 {[%clk 0:01:08]}  Ne6 {[%clk 0:00:45]} 27. Nd4 {[%clk 0:01:08]}  Nxd4 {[%clk 0:00:32]} 28. Qxd4 {[%clk 0:01:09]}  b6 {[%clk 0:00:29]} 29. Rc1 {[%clk 0:01:08]}  Qe6 {[%clk 0:00:24]} 30. b4 {[%clk 0:00:47]}  Re7 {[%clk 0:00:20]} 31. f4 {[%clk 0:00:32]}  Qg4 {[%clk 0:00:13]} 32. Rc3 {[%clk 0:00:32]}  Qe2 {[%clk 0:00:11]} 33. Rc1 {[%clk 0:00:14]}  Kh7 {[%clk 0:00:10]} 34. Qf2 {[%clk 0:00:11]}  Qe4 {[%clk 0:00:08]} 35. a3 {[%clk 0:00:11]}  d4 {[%clk 0:00:08]} 36. Re1 {[%clk 0:00:10]}  Qd5 {[%clk 0:00:08]} 37. Rd1 {[%clk 0:00:07]}  d3 {[%clk 0:00:08]} 38. Rd2 {[%clk 0:00:05]}  Rc7 {[%clk 0:00:07]} 39. Qe3 {[%clk 0:00:04]}  Rc1+ {[%clk 0:00:07]} 40. Kf2 {[%clk 0:00:02]}  Qh1 {[%clk 0:00:07]} 41. Qxd3 {[%clk 0:00:01]}  Qg1+ {[%clk 0:00:07]} 42. Kf3 {[%clk 0:00:01]}  Qh1+ {[%clk 0:00:06]} 43. Ke3 {[%clk 0:00:01]}  Qg1+ {[%clk 0:00:03]} 44. Ke4 {[%clk 0:00:01]}  Qh1+ {[%clk 0:00:03]} 45. Kd4 {[%clk 0:00:01]}  Qg1+ {[%clk 0:00:03]} 46. Ke4 {[%clk 0:00:02]}  Qh1+ {[%clk 0:00:04]} 47. Ke3 {[%clk 0:00:02]}  Qg1+ {[%clk 0:00:04]} 48. Ke4 {[%clk 0:00:02]} 1/2-1/2


[Site "https://www.chess.com"]